bitfinex/quotes_BTCUSD_20220115
["timestamp","ask_amount","ask_price","bid_price","bid_amount"]
[1642242070455,0.285608,43196.0,43189.0,0.0005351]
[1642242070705,0.215815,43197.0,43190.0,0.69457]
[1642242070706,0.115821,43194.0,43190.0,0.69457]
[1642242070906,0.115821,43194.0,43190.0,0.69465595]
[1642242071104,0.115821,43194.0,43191.0,6.876e-05]
[1642242071305,0.115821,43194.0,43192.0,0.69457]
[1642242071705,0.057911,43193.0,43192.0,0.69457]
[1642242074451,0.057911,43193.0,43192.0,0.64977]
[1642242076754,0.057911,43193.0,43192.0,0.186468]
[1642242077357,0.057911,43193.0,43191.0,6.876e-05]
[1642242077958,0.057911,43193.0,43189.0,0.0005351]
[1642242078202,0.00121984,43192.0,43189.0,0.0005351]
[1642242078404,0.057919,43191.0,43182.0,0.38018966]
[1642242078803,0.057919,43191.0,43183.0,0.00013752]
[1642242079005,0.48018966,43190.0,43183.0,0.00013752]
[1642242079211,0.48018966,43190.0,43177.0,0.57779757]
[1642242079212,0.115859,43182.0,43177.0,0.57779757]
[1642242079405,0.115859,43182.0,43178.0,0.69485595]
[1642242079605,0.05793,43181.0,43178.0,0.69485595]
[1642242079905,0.05793,43181.0,43179.0,6.876e-05]
[1642242080107,0.05793,43181.0,43180.0,0.69477]
[1642242080505,0.05793,43181.0,43180.0,0.231336]
[1642242081304,0.42316036,43181.0,43180.0,0.231336]
[1642242081850,0.3,43180.0,43179.0,6.876e-05]
[1642242082055,0.67481296,43180.0,43179.0,6.876e-05]
[1642242082250,0.7069415,43180.0,43172.0,0.00018909]
[1642242082451,0.057932,43176.0,43172.0,0.00018909]
[1642242082655,0.40679463,43176.0,43173.0,0.68486]
[1642242083055,0.50679463,43176.0,43174.0,0.00015471]
[1642242083253,0.49706256,43176.0,43175.0,0.70485]
[1642242083654,0.157932,43176.0,43175.0,0.70498752]
[1642242083855,0.49449384,43176.0,43175.0,0.70498752]
[1642242084153,0.157932,43176.0,43175.0,0.70498752]
[1642242084353,0.157932,43176.0,43175.0,0.66018752]
[1642242085353,0.057932,43176.0,43175.0,0.66018752]
[1642242085614,0.39864398,43176.0,43175.0,0.66018752]
[1642242086016,0.49864398,43176.0,43175.0,0.66018752]
[1642242086216,0.49864398,43176.0,43175.0,0.19669352]
[1642242087018,0.80725198,43176.0,43175.0,0.19669352]
[1642242087217,0.80725198,43176.0,43166.0,0.00096892]
[1642242087419,0.75164398,43176.0,43166.0,0.00096892]
[1642242087619,0.75164398,43176.0,43167.0,0.00013752]
[1642242088219,0.72864398,43176.0,43167.0,0.00013752]
[1642242088420,0.72864398,43176.0,43165.0,0.11319649]
[1642242088819,0.00013752,43175.0,43167.0,0.30841822]
[1642242089020,0.057936,43171.0,43168.0,0.69496]
[1642242089460,0.057936,43171.0,43168.0,0.65016]
[1642242089660,2.34356756,43169.0,43168.0,0.65016]
[1642242090057,2.44356756,43169.0,43168.0,0.65016]
[1642242090461,0.1,43169.0,43168.0,0.65016]
[1642242091060,0.057936,43171.0,43168.0,0.65016]
[1642242092660,0.057936,43171.0,43170.0,0.34047117]
[1642242092861,0.057936,43171.0,43170.0,1.08020117]
[1642242093112,0.05800476,43171.0,43170.0,1.08020117]
[1642242093908,0.05800476,43171.0,43170.0,2.23020117]
[1642242094408,0.05800476,43171.0,43170.0,1.88973]
[1642242094609,0.05812476,43171.0,43170.0,1.88973]
[1642242095613,0.05812476,43171.0,43170.0,2.15011051]
[1642242099358,0.05812476,43171.0,43170.0,2.10521051]
[1642242102102,0.05812476,43171.0,43170.0,1.84483]
[1642242103106,0.05812476,43171.0,43170.0,2.08943853]
[1642242104354,0.05812476,43171.0,43170.0,2.04483853]
[1642242107663,0.05812476,43171.0,43170.0,1.80023]
[1642242108709,0.05812476,43171.0,43170.0,2.09218913]
[1642242109108,0.04812476,43171.0,43170.0,0.94218913]
[1642242109506,0.04812476,43171.0,43170.0,0.89728913]
[1642242109707,0.04812476,43171.0,43170.0,1.84728913]
[1642242110909,0.00018876,43171.0,43170.0,1.84728913]
[1642242111313,0.231711,43190.0,43173.0,0.05791909]
[1642242111511,0.00120546,43188.0,43180.0,0.057917]
[1642242111711,0.20088,43183.0,43180.0,0.180867]
[1642242111954,0.20088,43183.0,43181.0,1.64599265]
[1642242112153,0.20088,43183.0,43182.0,1.58864634]
[1642242112359,0.20088,43183.0,43182.0,2.46257634]
[1642242112557,0.20108628,43183.0,43182.0,2.46257634]
[1642242112960,0.00020628,43183.0,43182.0,2.52048372]
[1642242113157,0.057906,43186.0,43183.0,0.75]
[1642242113358,0.057906,43186.0,43184.0,0.931805]
[1642242114661,0.047906,43186.0,43184.0,0.8739]
[1642242116708,0.047906,43186.0,43184.0,0.931815]
[1642242117308,0.277906,43186.0,43184.0,0.931815]
[1642242117708,0.277906,43186.0,43184.0,0.8739]
[1642242119453,0.277906,43186.0,43184.0,0.8292]
[1642242119661,0.38497387,43185.0,43184.0,0.8292]
[1642242119856,0.38624627,43185.0,43184.0,0.365782]
[1642242120056,0.80443483,43185.0,43184.0,0.365782]
[1642242120256,0.80443483,43185.0,43174.0,0.6408492]
[1642242120458,0.37201846,43184.0,43174.0,0.057928]
[1642242120658,0.00122212,43176.0,43175.0,0.00013752]
[1642242120857,0.00122212,43176.0,43168.0,0.5829212]
[1642242120858,0.00724361,43176.0,43168.0,0.5829212]
[1642242121058,0.00724361,43176.0,43169.0,0.00010314]
[1642242121661,0.057933,43172.0,43170.0,0.057934]
[1642242121859,0.057933,43172.0,43170.0,0.33481393]
[1642242122159,0.057933,43172.0,43171.0,1.45006876]
[1642242122958,0.057933,43172.0,43171.0,2.14496876]
[1642242124016,0.057933,43172.0,43171.0,0.69496876]
[1642242124515,0.057933,43172.0,43171.0,1.05016876]
[1642242124720,0.057933,43172.0,43171.0,0.65016876]
[1642242125514,0.057933,43172.0,43171.0,1.20016876]
[1642242125715,0.057933,43172.0,43171.0,1.58799647]
[1642242126518,0.057933,43172.0,43171.0,1.20016876]
[1642242126958,0.39246766,43172.0,43171.0,0.65016876]
[1642242127158,0.50219897,43172.0,43171.0,0.65016876]
[1642242127361,0.387933,43172.0,43171.0,1.25016876]
[1642242128659,0.387933,43172.0,43171.0,0.65016876]
[1642242129462,0.387933,43172.0,43171.0,0.60556876]
[1642242130462,0.387933,43172.0,43171.0,1.10556876]
[1642242130909,0.287933,43172.0,43171.0,1.10556876]
[1642242133410,0.23,43172.0,43171.0,1.80556876]
[1642242134458,0.287925,43172.0,43171.0,1.80556876]
[1642242134659,0.287925,43172.0,43171.0,1.76076876]
[1642242139020,0.282925,43172.0,43171.0,1.06076876]
[1642242139617,0.282925,43172.0,43171.0,1.01626876]
[1642242140218,0.282925,43172.0,43171.0,1.56626876]
[1642242141219,0.225,43172.0,43171.0,1.56626876]
[1642242143957,0.22421053,43172.0,43171.0,1.01626876]
[1642242144560,0.22421053,43172.0,43171.0,0.97156876]
[1642242145159,0.22421053,43172.0,43171.0,1.57156876]
[1642242148414,0.22421053,43172.0,43171.0,0.97156876]
[1642242148415,0.21421053,43172.0,43171.0,0.97156876]
[1642242149564,0.21421053,43172.0,43171.0,0.92686876]
[1642242150164,0.21421053,43172.0,43171.0,1.52686876]
[1642242154712,0.21421053,43172.0,43171.0,1.48216876]
[1642242155114,0.21421053,43172.0,43171.0,1.83216876]
[1642242156969,0.21421053,43172.0,43171.0,1.48216876]
[1642242159670,0.21421053,43172.0,43171.0,1.43726876]
[1642242162041,0.00602149,43176.0,43172.0,1.3]
[1642242162241,0.126,43177.0,43175.0,0.5567959]
[1642242162443,0.009278,43184.0,43176.0,1.41517174]
[1642242162444,0.1,43183.0,43176.0,1.41517174]
[1642242162641,0.009278,43184.0,43178.0,0.25235625]
[1642242162845,0.00020628,43183.0,43178.0,0.25235625]
[1642242163041,0.00020628,43183.0,43182.0,0.4347548]
[1642242163241,0.009278,43184.0,43182.0,0.4347548]
[1642242163441,0.009278,43184.0,43182.0,0.49266675]
[1642242163943,0.05791,43183.0,43182.0,0.49266675]
[1642242164142,0.05791,43183.0,43182.0,0.4347548]
[1642242164767,0.05791,43183.0,43182.0,0.3900548]
[1642242164967,0.05791,43183.0,43182.0,1.0900548]
[1642242166168,0.02705286,43183.0,43182.0,0.3900548]
[1642242168117,0.25705286,43183.0,43182.0,0.3900548]
[1642242169719,0.25705286,43183.0,43182.0,0.3452548]
[1642242169921,0.25705286,43183.0,43182.0,1.0452548]
[1642242171324,0.25705286,43183.0,43182.0,1.10316726]
[1642242172862,0.25705286,43183.0,43182.0,1.0452548]
[1642242173864,0.25705286,43183.0,43182.0,1.64312886]
[1642242174665,0.25705286,43183.0,43182.0,1.0005548]
[1642242176221,0.25705286,43183.0,43182.0,1.05846743]
[1642242176522,0.25705286,43183.0,43182.0,1.0005548]
[1642242178826,0.25705286,43183.0,43182.0,1.5005548]
[1642242179027,0.23,43183.0,43182.0,1.5005548]
[1642242179361,0.23,43183.0,43182.0,1.0005548]
[1642242179767,0.23,43183.0,43182.0,0.9557548]
[1642242180365,0.287913,43183.0,43182.0,0.9557548]
[1642242180665,0.311083,43183.0,43182.0,0.9557548]
[1642242180865,0.25317,43183.0,43182.0,1.61366163]
[1642242181067,0.35317,43183.0,43182.0,1.61366163]
[1642242181668,0.35317,43183.0,43182.0,1.01366163]
[1642242181966,0.35317,43183.0,43182.0,1.46366163]
[1642242182366,0.35317,43183.0,43182.0,1.01366163]
[1642242183314,0.25317,43183.0,43182.0,1.01366163]
[1642242183514,0.35317,43183.0,43182.0,1.01366163]
[1642242183723,0.25317,43183.0,43182.0,3.21207877]
[1642242184116,0.25317,43183.0,43182.0,2.86366163]
[1642242184316,0.25317,43183.0,43182.0,3.91606163]
[1642242184717,0.25317,43183.0,43182.0,3.87116163]
[1642242185117,0.25317,43183.0,43182.0,3.87716163]
[1642242186325,0.25317,43183.0,43182.0,3.87116163]
[1642242186521,0.167176,43191.0,43183.0,1.2]
[1642242186722,0.167176,43191.0,43186.0,0.05789892]
[1642242186970,0.00032661,43190.0,43186.0,0.05789892]
[1642242187166,0.057903,43189.0,43186.0,0.05789892]
[1642242187367,0.05821242,43189.0,43186.0,0.05789892]
[1642242187667,0.00029223,43188.0,43187.0,0.79392347]
[1642242187867,0.00029223,43188.0,43187.0,0.90972747]
[1642242188468,0.00029223,43188.0,43187.0,1.2649727]
[1642242189068,0.23029223,43188.0,43187.0,1.2649727]
[1642242189469,0.23029223,43188.0,43187.0,0.665804]
[1642242189868,0.23479223,43188.0,43187.0,0.621004]
[1642242190718,0.23479223,43188.0,43187.0,1.271004]
[1642242191317,0.23479223,43188.0,43187.0,0.621004]
[1642242191526,0.23479223,43188.0,43187.0,0.55]
[1642242191719,0.23479223,43188.0,43184.0,1.110212]
[1642242191920,0.057913,43187.0,43184.0,1.0523]
[1642242192223,0.00025785,43186.0,43185.0,0.35495378]
[1642242192419,0.00025785,43186.0,43185.0,1.8023]
[1642242193220,0.00025785,43186.0,43185.0,2.52555982]
[1642242193421,0.00025785,43186.0,43185.0,2.22761845]
[1642242194221,0.00025785,43186.0,43185.0,1.47761845]
[1642242194867,0.00025785,43186.0,43185.0,1.43281845]
[1642242195470,0.00025785,43186.0,43185.0,1.68803835]
[1642242195669,0.00025785,43186.0,43185.0,2.68803835]
[1642242196869,0.00025785,43186.0,43185.0,2.43281845]
[1642242197070,0.00025785,43186.0,43185.0,1.0075]
[1642242197671,0.00025785,43186.0,43185.0,1.3575]
[1642242199815,0.00025785,43186.0,43185.0,1.3127]
[1642242200615,0.00025785,43186.0,43185.0,0.9627]
[1642242202569,0.00025785,43186.0,43185.0,1.6627]
[1642242204873,0.00025785,43186.0,43185.0,1.618]
[1642242207518,0.00025785,43186.0,43185.0,1.968]
[1642242208721,0.00025785,43186.0,43185.0,2.524511]
[1642242209222,0.17659025,43188.0,43186.0,0.0578929]
[1642242209472,0.17659025,43188.0,43187.0,2.6366]
[1642242209871,0.17659025,43188.0,43187.0,2.592]
[1642242210071,0.17659025,43188.0,43187.0,2.98503457]
[1642242210474,0.17659025,43188.0,43187.0,2.98003457]
[1642242213420,0.17659025,43188.0,43187.0,4.38775166]
[1642242213619,0.17659025,43188.0,43187.0,5.61775166]
[1642242213818,0.0045,43188.0,43187.0,5.61775166]
[1642242214022,0.03101692,43197.0,43191.0,0.11577529]
[1642242214221,0.03101692,43197.0,43194.0,0.34117783]
[1642242214222,0.05789,43196.0,43194.0,0.34117783]
[1642242214421,0.0580619,43196.0,43194.0,0.59095828]
[1642242214823,0.0580619,43196.0,43194.0,0.54615828]
[1642242215020,0.0001719,43196.0,43194.0,0.60404895]
[1642242215620,0.0580619,43196.0,43194.0,0.60404895]
[1642242215821,0.0001719,43196.0,43194.0,0.60404895]
[1642242218176,0.1159649,43196.0,43192.0,0.057891]
[1642242218778,0.3459649,43196.0,43192.0,0.057891]
[1642242219177,0.4459649,43196.0,43189.0,0.62184521]
[1642242219377,0.4459649,43196.0,43190.0,0.40402174]
[1642242219977,0.4459649,43196.0,43190.0,0.35932174]
[1642242219978,0.2159649,43196.0,43190.0,0.35932174]
[1642242220379,0.1159649,43196.0,43192.0,0.057899]
[1642242221017,0.0001719,43196.0,43192.0,0.057899]
[1642242221419,0.0001719,43196.0,43192.0,0.37925127]
[1642242221817,0.0001719,43196.0,43192.0,0.057899]
[1642242222017,0.057891,43195.0,43192.0,0.057899]
[1642242222519,0.00013752,43194.0,43193.0,0.11577435]
[1642242222721,0.00013752,43194.0,43192.0,0.11579288]
[1642242222918,0.00013752,43194.0,43190.0,0.35932174]
[1642242223119,0.00601692,43197.0,43190.0,0.35932174]
[1642242223120,0.057902,43192.0,43190.0,0.35932174]
[1642242223519,8.595e-05,43191.0,43190.0,0.35932174]
[1642242224373,8.595e-05,43191.0,43190.0,1.85932174]
[1642242224968,8.595e-05,43191.0,43190.0,1.81462174]
[1642242225869,8.595e-05,43191.0,43189.0,0.057901]
[1642242226069,0.057909,43190.0,43187.0,1.137]
[1642242226270,0.05797776,43190.0,43187.0,1.137]
[1642242230023,0.05797776,43190.0,43187.0,1.0921]
[1642242230424,0.05797776,43190.0,43188.0,0.2887085]
[1642242230627,0.05797776,43190.0,43189.0,2.22523122]
[1642242232867,0.05797776,43190.0,43189.0,1.72523122]
[1642242233272,0.05797776,43190.0,43189.0,2.12523122]
[1642242234268,0.05797776,43190.0,43189.0,1.72523122]
[1642242234868,0.05797776,43190.0,43189.0,1.68073122]
[1642242235269,0.05797776,43190.0,43189.0,2.13073122]
[1642242235930,6.876e-05,43190.0,43189.0,2.13073122]
[1642242236125,6.876e-05,43190.0,43189.0,3.38073122]
[1642242240068,6.876e-05,43190.0,43189.0,3.33593122]
[1642242240270,6.876e-05,43190.0,43189.0,3.33361449]
[1642242242275,6.876e-05,43190.0,43189.0,2.08361449]
[1642242243115,6.876e-05,43190.0,43189.0,2.73361449]
[1642242243721,0.03497276,43191.0,43190.0,1.05]
[1642242243917,0.03497276,43191.0,43189.0,1.63361449]
[1642242244718,0.03497276,43191.0,43189.0,1.62861449]
[1642242245121,0.03497276,43191.0,43189.0,1.58361449]
[1642242245921,0.115789,43196.0,43191.0,0.57943524]
[1642242246224,8.595e-05,43195.0,43191.0,0.57943524]
[1642242246423,0.057897,43194.0,43191.0,0.57943524]
[1642242246621,0.05796576,43194.0,43191.0,0.57943524]
[1642242247270,0.05796576,43194.0,43191.0,0.52153824]
[1642242249978,0.05796576,43194.0,43191.0,1.03344924]
[1642242250177,0.05796576,43194.0,43191.0,1.09134524]
[1642242251616,0.05796576,43194.0,43191.0,1.1492398]
[1642242252018,0.05796576,43194.0,43191.0,1.03344924]
[1642242252718,0.31371274,43193.0,43191.0,1.03344924]
[1642242252918,0.115805,43192.0,43191.0,1.03344924]
[1642242253120,0.42670713,43192.0,43191.0,1.03344924]
[1642242253622,0.52670713,43192.0,43191.0,1.03344924]
[1642242253819,0.52581971,43192.0,43191.0,1.03344924]
[1642242255183,0.52581971,43192.0,43191.0,0.98874924]
[1642242255384,0.55181971,43192.0,43191.0,0.98874924]
[1642242256786,0.52581971,43192.0,43191.0,0.98874924]
[1642242256987,0.215805,43192.0,43191.0,0.98874924]
[1642242257189,0.115805,43192.0,43191.0,0.98874924]
[1642242257687,0.115805,43192.0,43191.0,0.52544324]
[1642242257886,0.41346873,43192.0,43191.0,0.92544324]
[1642242258125,0.52920671,43192.0,43191.0,0.52544324]
[1642242259327,0.55620671,43192.0,43191.0,0.52544324]
[1642242259827,0.242805,43192.0,43191.0,0.52544324]
[1642242260027,0.142805,43192.0,43191.0,0.48034324]
[1642242260327,0.45275713,43192.0,43191.0,0.48034324]
[1642242260530,0.55275713,43192.0,43191.0,0.48034324]
[1642242260728,0.52575713,43192.0,43191.0,0.48034324]
[1642242261429,0.55175713,43192.0,43191.0,0.48034324]
[1642242261877,0.55175713,43192.0,43191.0,1.18034324]
[1642242261878,0.241805,43192.0,43191.0,1.18034324]
[1642242262078,0.026,43192.0,43191.0,1.18034324]
[1642242262677,0.057902,43193.0,43191.0,1.18034324]
[1642242262977,0.057902,43193.0,43191.0,1.23823524]
[1642242265180,0.057902,43193.0,43191.0,1.19343524]
[1642242265616,0.057902,43193.0,43191.0,1.74994624]
[1642242266618,0.057902,43193.0,43191.0,1.73685424]
[1642242269018,0.29477505,43192.0,43191.0,1.73685424]
[1642242269218,0.11581,43192.0,43191.0,1.73685424]
[1642242270272,0.11581,43192.0,43191.0,1.69195424]
[1642242270871,0.057904,43193.0,43191.0,2.24195424]
[1642242271668,0.057904,43193.0,43191.0,2.29984692]
[1642242272668,0.057904,43193.0,43191.0,2.35774092]
[1642242274922,0.057904,43193.0,43191.0,2.29984824]
[1642242275121,0.057904,43193.0,43191.0,2.25514824]
[1642242278772,0.057904,43193.0,43191.0,1.69195424]
[1642242280176,0.057904,43193.0,43191.0,1.64695424]
[1642242280376,0.29598348,43192.0,43191.0,1.64695424]
[1642242280625,0.115804,43192.0,43191.0,1.64695424]
[1642242281327,0.4075517,43192.0,43191.0,1.64695424]
[1642242281524,0.215804,43192.0,43191.0,1.64695424]
[1642242282428,0.2144448,43192.0,43191.0,1.64695424]
[1642242282634,0.2144448,43192.0,43191.0,0.94695424]
[1642242282830,0.1144448,43192.0,43191.0,0.94695424]
[1642242285275,0.1144448,43192.0,43191.0,0.90215424]
[1642242285571,0.1144448,43192.0,43191.0,1.60215424]
[1642242286773,0.1144448,43192.0,43191.0,0.90215424]
[1642242287176,0.40369561,43192.0,43191.0,0.90215424]
[1642242287375,0.40369561,43192.0,43191.0,0.43884724]
[1642242287574,0.50369561,43192.0,43191.0,0.43884724]
[1642242287974,0.50369561,43192.0,43189.0,1.13948327]
[1642242289320,0.8409127,43192.0,43189.0,0.67614627]
[1642242289520,0.86977931,43192.0,43189.0,0.67614627]
[1642242290325,0.86977931,43192.0,43189.0,0.63144627]
[1642242290923,0.84677931,43192.0,43189.0,0.63144627]
[1642242291122,0.84677931,43192.0,43189.0,0.16810927]
[1642242291322,0.285608,43190.0,43189.0,0.16810927]
[1642242291523,0.5805285,43192.0,43189.0,0.16810927]
[1642242291724,0.285608,43190.0,43189.0,0.16810927]
[1642242291972,0.5805285,43192.0,43189.0,0.16810927]
[1642242292975,0.5575285,43192.0,43189.0,0.16810927]
[1642242293572,0.5805285,43192.0,43189.0,0.16810927]
[1642242295373,0.22031141,43192.0,43189.0,0.12340927]
[1642242295623,0.14431141,43192.0,43189.0,0.12340927]
[1642242296022,0.1384448,43192.0,43189.0,0.12340927]
[1642242296827,0.1144448,43192.0,43189.0,0.12340927]
[1642242300271,0.1144448,43192.0,43189.0,0.07870927]
[1642242303623,0.04894399,43191.0,43185.0,0.556511]
[1642242303823,0.05666173,43191.0,43185.0,0.556511]
[1642242304025,0.057917,43188.0,43186.0,6.876e-05]
[1642242305522,0.057917,43188.0,43185.0,0.51177976]
[1642242308471,0.057917,43188.0,43185.0,0.43114659]
[1642242310273,0.057917,43188.0,43185.0,0.38644659]
[1642242311726,0.30856975,43187.0,43185.0,0.38644659]
[1642242311925,0.30856975,43187.0,43180.0,0.3074]
[1642242311926,0.173765,43186.0,43180.0,0.3074]
[1642242312126,0.17978479,43186.0,43173.0,0.05791936]
[1642242312329,0.17978479,43186.0,43181.0,8.595e-05]
[1642242312730,0.17978479,43186.0,43177.0,0.00015471]
[1642242312931,0.17978479,43186.0,43179.0,0.32001902]
[1642242313329,0.17978479,43186.0,43180.0,0.00010314]
[1642242313835,0.55901941,43186.0,43179.0,0.00012033]
[1642242314030,0.65901941,43186.0,43179.0,0.00012033]
[1642242314231,0.65901941,43186.0,43177.0,0.00015471]
[1642242314673,0.65901941,43186.0,43180.0,0.24570026]
[1642242314872,0.27978479,43186.0,43180.0,0.24570026]
[1642242315273,0.17978479,43186.0,43180.0,0.24570026]
[1642242316275,0.0272401,43184.0,43180.0,0.24570026]
[1642242316577,0.057913,43182.0,43180.0,0.24570026]
[1642242321036,0.057913,43182.0,43181.0,2.74614755]
[1642242321236,0.057903,43186.0,43181.0,3.12286852]
[1642242321438,0.23,43188.0,43181.0,3.12286852]
[1642242321439,0.23,43188.0,43183.0,0.0579]
[1642242321638,0.265,43188.0,43184.0,1.070149]
[1642242322070,0.265,43188.0,43185.0,0.43233334]
[1642242322271,0.265,43188.0,43186.0,0.375449]
[1642242322472,0.265,43188.0,43186.0,1.131899]
[1642242323172,0.009277,43192.0,43187.0,2.72365151]
[1642242323372,0.009277,43192.0,43188.0,2.68448278]
[1642242323571,8.595e-05,43191.0,43189.0,0.05788544]
[1642242323771,8.595e-05,43191.0,43190.0,3.99572797]
[1642242323970,0.009277,43192.0,43190.0,5.22572797]
[1642242324173,0.009277,43192.0,43191.0,3.21933129]
[1642242324371,0.009277,43192.0,43191.0,4.28937029]
[1642242324572,0.00938014,43192.0,43191.0,4.28937029]
[1642242324972,0.20046,43211.0,43192.0,2.1]
[1642242325172,0.0463,43207.0,43198.0,0.05788]
[1642242325371,0.00013752,43200.0,43199.0,0.63998547]
[1642242325627,0.00013752,43200.0,43199.0,1.33444547]
[1642242326028,0.00013752,43200.0,43199.0,1.75100449]
[1642242326230,0.00013752,43200.0,43199.0,2.90100449]
[1642242326832,0.00013752,43200.0,43199.0,3.27772938]
[1642242327227,0.00013752,43200.0,43199.0,3.62772938]
[1642242328629,0.00013752,43200.0,43199.0,3.27772938]
[1642242329229,0.00013752,43200.0,43199.0,3.83424038]
[1642242329675,0.00013752,43200.0,43199.0,3.83396449]
[1642242329875,0.00013752,43200.0,43199.0,3.08061466]
[1642242330678,0.0572295,43202.0,43200.0,1.15]
[1642242330877,0.0572295,43202.0,43200.0,1.41232977]
[1642242331076,0.0572295,43202.0,43200.0,1.1054]
[1642242331279,0.057878,43205.0,43201.0,1.42]
[1642242331478,0.0463,43207.0,43204.0,1.52159536]
[1642242331678,0.00010314,43206.0,43204.0,1.52159536]
[1642242331981,8.595e-05,43205.0,43204.0,1.52159536]
[1642242332178,8.595e-05,43205.0,43204.0,2.12159536]
[1642242332980,8.595e-05,43205.0,43204.0,2.81597536]
[1642242335724,8.595e-05,43205.0,43204.0,2.77137536]
[1642242340178,0.004,43226.0,43207.0,2.55]
[1642242340383,0.004,43226.0,43224.0,0.00125759]
[1642242340629,0.061852,43226.0,43224.0,0.09808759]
[1642242340828,0.061852,43226.0,43224.0,0.0544528]
[1642242341128,0.061852,43226.0,43225.0,2.09404]
[1642242341529,0.004361,43226.0,43225.0,2.09404]
[1642242342127,0.004361,43226.0,43225.0,2.84404]
[1642242342930,0.004361,43226.0,43225.0,2.09404]
[1642242343331,0.004361,43226.0,43225.0,0.69404]
[1642242343741,0.002,43249.0,43229.0,0.057848]
[1642242343933,0.002,43249.0,43233.0,0.1]
[1642242344131,0.002,43249.0,43234.0,1.39579212]
[1642242344379,0.00185265,43249.0,43239.0,0.115653]
[1642242344575,0.00185265,43249.0,43247.0,0.00123891]
[1642242344775,0.00185265,43249.0,43248.0,0.94594341]
[1642242344979,0.00185265,43249.0,43248.0,2.59594341]
[1642242345175,0.00224802,43249.0,43248.0,2.59594341]
[1642242345376,0.00224802,43249.0,43248.0,0.69367]
[1642242345776,0.00224802,43249.0,43248.0,0.64877]
[1642242345978,0.00224802,43249.0,43248.0,0.99877]
[1642242346176,0.00224802,43249.0,43248.0,1.555281]
[1642242346576,0.00224802,43249.0,43248.0,1.205281]
[1642242346976,0.00224802,43249.0,43248.0,0.742544]
[1642242347879,0.29518167,43249.0,43248.0,0.742544]
[1642242349129,0.00224802,43249.0,43248.0,0.742544]
[1642242349326,0.29203625,43249.0,43248.0,0.742544]
[1642242349728,0.15444813,43253.0,43249.0,2.55]
[1642242349929,0.0005351,43258.0,43257.0,0.00122669]
[1642242350137,0.0005351,43258.0,43257.0,1.20242669]
[1642242350329,0.7225611,43258.0,43257.0,1.20242669]
[1642242350528,0.4429551,43258.0,43257.0,1.20242669]
[1642242350730,1.0119551,43258.0,43257.0,1.20242669]
[1642242350930,0.0005351,43258.0,43257.0,1.65782669]
[1642242351129,0.6769551,43258.0,43257.0,1.65782669]
[1642242351330,0.0005351,43258.0,43257.0,1.65782669]
[1642242351629,0.1005351,43258.0,43257.0,1.15782669]
[1642242352785,0.0005351,43258.0,43257.0,1.15782669]
[1642242352983,0.0583481,43258.0,43257.0,1.15782669]
[1642242353383,0.20028,43264.0,43258.0,2.55]
[1642242353584,0.20028,43264.0,43257.0,1.48044154]
[1642242353585,0.002,43270.0,43257.0,1.15905024]
[1642242353784,0.002,43270.0,43257.0,1.15782669]
[1642242354085,0.115619,43266.0,43261.0,0.00127166]
[1642242354281,0.115619,43266.0,43262.0,1.2445]
[1642242354483,0.32936856,43265.0,43262.0,1.2445]
[1642242354682,0.35792039,43265.0,43262.0,1.2445]
[1642242354884,0.00025785,43264.0,43262.0,1.2445]
[1642242355282,0.00024066,43263.0,43262.0,1.2445]
[1642242355924,0.00024066,43263.0,43262.0,1.1998]
[1642242356728,0.00024066,43263.0,43262.0,1.20106313]
[1642242356925,0.00024066,43263.0,43262.0,3.45757413]
[1642242357125,0.00024066,43263.0,43262.0,1.75757413]
[1642242357926,0.00024066,43263.0,43262.0,3.25757413]
[1642242358826,0.00024066,43263.0,43262.0,3.81408513]
[1642242359226,0.00024066,43263.0,43262.0,2.31408513]
[1642242360581,0.00024066,43263.0,43262.0,2.87059613]
[1642242360980,0.00024066,43263.0,43262.0,2.82589613]
[1642242361581,0.00024066,43263.0,43262.0,2.82709796]
[1642242361782,0.00024066,43263.0,43262.0,3.37709796]
[1642242362581,0.00024066,43263.0,43262.0,2.82709796]
[1642242364823,0.00024066,43263.0,43262.0,3.72709796]
[1642242365625,0.00024066,43263.0,43262.0,2.82709796]
[1642242366029,0.00024066,43263.0,43262.0,2.78229796]
[1642242366878,0.00024066,43263.0,43262.0,3.18229796]
[1642242367080,0.00024066,43263.0,43262.0,2.78229796]
[1642242367983,0.00024066,43263.0,43262.0,4.38902615]
[1642242368586,0.00024066,43263.0,43262.0,3.10569153]
[1642242368783,0.00024066,43263.0,43262.0,5.23569153]
[1642242368982,0.00024066,43263.0,43262.0,4.38114053]
[1642242369384,0.00024066,43263.0,43262.0,3.10569153]
[1642242369786,0.00024066,43263.0,43262.0,2.78229796]
[1642242370832,0.00024066,43263.0,43262.0,3.02868443]
[1642242371032,0.00024066,43263.0,43262.0,2.98398443]
[1642242371632,0.00024066,43263.0,43262.0,3.73398443]
[1642242372034,0.00024066,43263.0,43262.0,2.98398443]
[1642242372633,0.00024066,43263.0,43262.0,3.48398443]
[1642242373435,0.00126373,43278.0,43266.0,0.05779374]
[1642242373636,0.00126373,43278.0,43266.0,0.11558974]
[1642242373837,0.00010314,43269.0,43266.0,0.11558974]
[1642242374034,0.00010314,43269.0,43267.0,1.68972786]
[1642242374234,8.595e-05,43268.0,43267.0,1.68972786]
[1642242374474,8.595e-05,43268.0,43267.0,2.02482507]
[1642242374870,0.05288095,43270.0,43268.0,1.15]
[1642242375272,0.05288095,43270.0,43267.0,2.45535795]
[1642242375873,0.05288095,43270.0,43267.0,1.3761]
[1642242377073,0.413593,43270.0,43267.0,1.3761]
[1642242377574,0.513593,43270.0,43267.0,1.3761]
[1642242381050,0.513593,43270.0,43267.0,1.3312]
[1642242382379,0.743593,43270.0,43267.0,1.3312]
[1642242385083,0.743593,43270.0,43267.0,0.868702]
[1642242385729,0.3313389,43269.0,43267.0,0.406189]
[1642242386033,0.3313389,43269.0,43267.0,0.361589]
[1642242386034,0.173443,43268.0,43267.0,0.361589]
[1642242386230,0.43074081,43263.0,43262.0,1.669533]
[1642242386629,0.58855481,43263.0,43262.0,1.66963614]
[1642242387230,0.87389004,43263.0,43262.0,1.66963614]
[1642242387430,0.87366748,43263.0,43262.0,1.66963614]
[1642242387830,0.58855481,43263.0,43262.0,2.36307614]
[1642242388232,0.87460918,43263.0,43262.0,2.36307614]
[1642242388430,0.88541533,43263.0,43262.0,2.36307614]
[1642242388831,0.58855481,43263.0,43262.0,2.36307614]
[1642242389031,0.87515465,43263.0,43262.0,2.36307614]
[1642242389233,0.87829016,43263.0,43262.0,2.36307614]
[1642242389681,0.87829016,43263.0,43262.0,0.69354314]
[1642242389880,1.16389816,43263.0,43262.0,0.69354314]